bitfinex-derivatives/quotes_BTCF0:USTF0_20251217
["timestamp","ask_amount","ask_price","bid_price","bid_amount"]
[1765992454115,0.001,87096.0,87093.0,1e-08]
[1765992454925,0.3608,87097.0,87093.0,1e-08]
[1765992455127,0.001,87096.0,87093.0,1e-08]
[1765992456219,0.3608,87097.0,87093.0,1e-08]
[1765992456716,0.001,87096.0,87093.0,1e-08]
[1765992457123,0.3608,87097.0,87093.0,1e-08]
[1765992457716,0.36097231,87110.0,87093.0,1e-08]
[1765992458023,0.36097231,87110.0,87105.0,0.011484]
[1765992458215,0.36097231,87110.0,87102.0,0.0114843]
[1765992458618,0.00017231,87110.0,87104.0,0.3722841]
[1765992458927,0.00017231,87110.0,87104.0,0.3608]
[1765992459119,1e-08,87110.0,87105.0,0.011484]
[1765992459325,1e-08,87110.0,87107.0,0.0114836]
[1765992460123,0.00100001,87110.0,87104.0,0.3608]
[1765992460616,1e-08,87110.0,87104.0,0.3608]
[1765992462524,0.3608,87105.0,87089.0,0.724]
[1765992462934,0.3608,87105.0,87086.0,0.72396]
[1765992463422,0.3608,87105.0,87080.0,0.32979004]
[1765992463625,0.3608,87094.0,87082.0,0.016487]
[1765992464323,0.3608,87094.0,87082.0,0.005]
[1765992464722,0.3608,87094.0,87083.0,0.0114869]
[1765992465326,0.3608,87094.0,87082.0,0.005]
[1765992466122,0.3608,87094.0,87083.0,0.0114869]
[1765992467433,0.3608,87094.0,87085.0,0.0114866]
[1765992467730,0.3608,87105.0,87101.0,0.0114845]
[1765992468029,1e-08,87110.0,87103.0,0.3608]
[1765992468233,1e-08,87110.0,87108.0,0.0114836]
[1765992470427,0.0114813,87126.0,87108.0,0.0114836]
[1765992470740,0.0114813,87126.0,87105.0,0.3608]
[1765992470741,0.3722813,87126.0,87112.0,0.3608]
[1765992470934,0.3608,87126.0,87113.0,0.0114829]
[1765992471135,0.0001722,87128.0,87119.0,0.3608]
[1765992471831,0.07330701,87130.0,87119.0,0.3608]
[1765992472031,0.07330701,87130.0,87124.0,0.0114814]
[1765992472432,0.07330701,87130.0,87122.0,0.0114817]
[1765992472830,0.002,87128.0,87122.0,0.0114817]
[1765992473035,1e-08,87130.0,87126.0,0.3608]
[1765992473641,1e-08,87135.0,87130.0,0.0114806]
[1765992473829,1e-08,87135.0,87126.0,0.3608]
[1765992474025,0.00229522,87138.0,87127.0,0.0114811]
[1765992474231,0.3608,87136.0,87126.0,0.3608]
[1765992475242,0.3608,87136.0,87122.0,0.001]
[1765992475442,0.3608,87136.0,87123.0,0.0114816]
[1765992475642,0.3608,87136.0,87126.0,0.001]
[1765992476043,0.3608,87136.0,87123.0,0.0114816]
[1765992476238,0.3608,87136.0,87126.0,0.0114812]
[1765992476446,0.3608,87136.0,87122.0,0.0114817]
[1765992476746,0.3608,87136.0,87126.0,0.001]
[1765992480442,0.3608,87136.0,87128.0,0.0114809]
[1765992480631,0.3608,87136.0,87126.0,0.001]
[1765992481432,0.00229522,87138.0,87135.0,0.3608]
[1765992483341,0.3608,87136.0,87124.0,0.3608]
[1765992484047,0.37228,87136.0,87124.0,0.3608]
[1765992484236,0.0114807,87131.0,87124.0,0.3608]
[1765992484438,0.3608,87127.0,87118.0,0.0114823]
[1765992484741,0.3608,87136.0,87124.0,0.3608]
[1765992484938,0.0114804,87133.0,87124.0,0.3608]
[1765992485648,0.3722801,87136.0,87124.0,0.19413]
[1765992486447,0.0114802,87134.0,87124.0,0.19413]
[1765992486847,0.0114805,87132.0,87124.0,0.19413]
[1765992487049,0.3608,87128.0,87117.0,0.0001722]
[1765992487243,0.0114813,87126.0,87117.0,0.0001722]
[1765992487443,0.0114816,87124.0,87117.0,2.2e-06]
[1765992487841,0.3608,87118.0,87117.0,2.2e-06]
[1765992488454,0.3608,87118.0,87100.0,0.3608]
[1765992488652,0.0114821,87120.0,87093.0,0.3608]
[1765992488653,0.3608,87101.0,87093.0,0.3608]
[1765992488946,0.3608,87101.0,87082.0,0.3658]
[1765992489141,0.3608,87101.0,87086.0,0.0114864]
[1765992489454,0.3608,87101.0,87086.0,0.0114865]
[1765992489954,0.3608,87101.0,87093.0,0.002]
[1765992490850,0.3608,87094.0,87072.0,0.3259722]
[1765992491050,0.3608,87083.0,87072.0,0.3259722]
[1765992491354,0.3608,87083.0,87071.0,0.0114885]
[1765992491558,0.3608,87083.0,87074.0,0.011488]
[1765992491952,0.3608,87083.0,87072.0,0.003]
[1765992492154,0.3608,87083.0,87067.0,1.0891012]
[1765992492450,0.3608,87075.0,87067.0,0.3539722]
[1765992492651,0.3608,87075.0,87071.0,0.002]
[1765992493059,0.3608,87075.0,87061.0,0.05404569]
[1765992493354,0.3608,87066.0,87059.0,0.0001722]
[1765992493560,0.3608,87075.0,87059.0,0.0001722]
[1765992493851,0.0001722,87077.0,87066.0,0.3608]
[1765992497051,0.0114879,87076.0,87066.0,0.3608]
[1765992497248,0.0116599,87077.0,87066.0,0.3608]
[1765992497646,0.0001722,87077.0,87066.0,0.3608]
[1765992498448,0.0001722,87077.0,87069.0,0.0114888]
[1765992498856,0.0011722,87077.0,87069.0,0.0114888]
[1765992499258,0.0001722,87077.0,87069.0,0.0114888]
[1765992499955,0.0114865,87087.0,87076.0,0.3608]
[1765992500160,0.011486,87090.0,87076.0,0.3608]
[1765992500359,0.3608,87096.0,87076.0,0.3608]
[1765992500556,0.0114867,87086.0,87076.0,0.3608]
[1765992501361,0.0114869,87083.0,87076.0,0.3608]
[1765992501553,0.0114867,87085.0,87076.0,0.3608]
[1765992501752,0.0001722,87090.0,87084.0,0.3608]
[1765992502851,0.0021722,87090.0,87084.0,0.3608]
[1765992503045,0.3608,87096.0,87084.0,0.3608]
[1765992503449,0.001,87090.0,87076.0,0.3608]
[1765992503651,0.001,87090.0,87072.0,0.0001722]
[1765992503652,0.3608,87078.0,87072.0,0.0001722]
[1765992503950,0.0114889,87068.0,87056.0,0.07152]
[1765992504147,0.3608,87059.0,87056.0,0.07152]
[1765992504557,0.3608,87059.0,87050.0,0.09658937]
[1765992504757,0.3608,87051.0,87043.0,0.0114921]
[1765992504961,0.3608,87051.0,87046.0,0.00017231]
[1765992505161,0.3608,87051.0,87039.0,0.21986481]
[1765992505361,0.3608,87044.0,87039.0,0.21986481]
[1765992505857,0.3608,87044.0,87027.0,0.05697831]
[1765992506160,0.3608,87051.0,87042.0,0.0114923]
[1765992506360,0.3658,87062.0,87045.0,0.3608]
[1765992506567,0.3772898,87062.0,87045.0,0.3608]
[1765992506862,0.3772897,87062.0,87045.0,0.3608]
[1765992507062,0.3772897,87062.0,87053.0,0.3608]
[1765992507364,0.3658,87062.0,87053.0,0.3608]
[1765992508357,0.3658,87062.0,87046.0,0.0114918]
[1765992508551,0.3658,87062.0,87045.0,0.3608]
[1765992508754,0.0114911,87052.0,87045.0,0.3608]
[1765992508955,0.0114907,87055.0,87045.0,0.3608]
[1765992509262,0.0114909,87053.0,87045.0,0.1808]
[1765992509456,0.0114909,87053.0,87036.0,0.0114931]
[1765992509457,0.3608,87054.0,87035.0,0.3608]
[1765992509658,0.3608,87054.0,87045.0,0.001]
[1765992510056,0.3722908,87054.0,87045.0,0.001]
[1765992510461,0.0114911,87052.0,87045.0,0.001]
[1765992510662,0.3608,87054.0,87037.0,8.325e-05]
[1765992511056,0.3608,87038.0,87018.0,0.00229839]
[1765992511272,0.3608,87031.0,87020.0,0.22516379]
[1765992511459,0.3608,87031.0,87021.0,0.0114951]
[1765992511655,0.3608,87031.0,87018.0,0.00229839]
[1765992511656,0.3722939,87031.0,87018.0,0.00229839]
[1765992511854,0.3608,87031.0,87018.0,0.00229839]
[1765992512060,8.325e-05,87030.0,87018.0,0.00229839]
[1765992512264,0.3608,87019.0,87018.0,0.00229839]
[1765992512457,0.0114943,87027.0,87020.0,0.001]
[1765992512672,0.0114943,87027.0,87016.0,0.00016999]
[1765992512862,8.325e-05,87030.0,87018.0,0.0114954]
[1765992513162,8.325e-05,87030.0,87020.0,0.22516379]
[1765992513866,8.325e-05,87030.0,87016.0,0.00016999]
[1765992514058,8.325e-05,87030.0,87018.0,0.001]
[1765992514563,8.325e-05,87030.0,87016.0,0.00016999]
[1765992514765,8.325e-05,87030.0,87020.0,0.0114951]
[1765992514967,8.325e-05,87030.0,87017.0,0.0114956]
[1765992515265,0.00017231,87033.0,87023.0,0.3608]
[1765992515470,0.00017231,87033.0,87030.0,0.3608]
[1765992515854,0.00017231,87033.0,87023.0,0.3608]
[1765992516061,0.00017231,87033.0,87016.0,0.00116999]
[1765992516062,0.3608,87026.0,87016.0,0.00116999]
[1765992517460,0.3608,87026.0,87016.0,0.00016999]
[1765992517966,0.3608,87026.0,87016.0,0.22533378]
[1765992518861,0.3608,87026.0,87016.0,0.22633378]
[1765992519057,0.3608,87026.0,87016.0,0.00116999]
[1765992520266,0.3608,87026.0,87016.0,0.00016999]
[1765992520570,0.3608,87026.0,87016.0,0.00116999]
[1765992521568,0.3608,87026.0,87017.0,0.0114956]
[1765992521956,0.36097231,87033.0,87016.0,0.22633378]
[1765992522164,0.00017231,87033.0,87030.0,0.3608]
[1765992522966,0.0114946,87025.0,87016.0,0.00116999]
[1765992523265,0.00017231,87033.0,87011.0,0.52452]
[1765992523266,0.3608,87022.0,87011.0,0.52452]
[1765992523464,0.3608,87015.0,87011.0,0.33452]
[1765992523866,0.3608,87022.0,87012.0,0.3722963]
[1765992525163,0.3608,87022.0,87013.0,0.0114962]
[1765992525565,0.3608,87022.0,87015.0,0.0114959]
[1765992525768,0.3608,87022.0,87012.0,0.3722962]
[1765992526075,0.3608,87022.0,87014.0,0.011496]
[1765992526268,0.3608,87022.0,87016.0,0.0114956]
[1765992526460,0.3608,87022.0,87013.0,0.0114962]
[1765992526661,0.3608,87022.0,87017.0,0.0114956]
[1765992526972,0.00017231,87033.0,87021.0,0.3608]
[1765992527274,0.00017231,87033.0,87032.0,0.3608]
[1765992528464,0.00117231,87033.0,87032.0,0.3608]
[1765992529870,0.001,87033.0,87032.0,0.3608]
[1765992530071,1e-08,87033.0,87032.0,0.3608]
[1765992530473,0.001,87033.0,87032.0,0.3608]
[1765992530968,0.00017231,87041.0,87032.0,0.3608]
[1765992531467,0.3608,87033.0,87024.0,0.00017231]
[1765992531673,0.011494,87030.0,87024.0,0.00017231]
[1765992531862,0.0114945,87026.0,87024.0,1e-08]
[1765992532565,0.3608,87025.0,87024.0,1e-08]
[1765992533869,0.3608,87025.0,87014.0,0.3608]
[1765992534170,0.3608,87015.0,87000.0,0.23677769]
[1765992534372,0.3608,87006.0,87000.0,0.22527989]
[1765992535171,0.3608,87006.0,86998.0,0.005]
[1765992535676,0.3608,86999.0,86998.0,1e-07]
[1765992537281,0.3608,86999.0,86981.0,0.01159031]
[1765992537479,0.0114986,86995.0,86981.0,8.991e-05]
[1765992537677,0.3608,86983.0,86981.0,8.991e-05]
[1765992537981,0.3608,86983.0,86970.0,0.22527989]
[1765992538167,0.3608,86983.0,86964.0,0.89312]
[1765992538371,0.3608,86983.0,86964.0,0.3608]
[1765992538372,0.0115017,86972.0,86964.0,0.3608]
[1765992538666,0.3608,86975.0,86950.0,0.22527989]
[1765992538667,0.3608,86967.0,86950.0,0.22527989]
[1765992538879,0.3608,86960.0,86945.0,0.3723051]
[1765992539181,8.991e-05,86966.0,86957.0,0.3658]
[1765992539680,8.991e-05,86966.0,86964.0,0.001]
[1765992540183,8.991e-05,86966.0,86957.0,0.3658]
[1765992541575,0.0115032,86961.0,86945.0,0.3608]
[1765992541868,8.991e-05,86966.0,86939.0,0.3608]
[1765992541869,0.3608,86950.0,86939.0,0.3608]
[1765992542082,0.0115062,86938.0,86921.0,0.3608]
[1765992542274,0.3608,86931.0,86921.0,0.3608]
[1765992542476,2.42e-06,86937.0,86932.0,0.0115068]
[1765992542681,2.42e-06,86937.0,86936.0,0.3608]
[1765992543181,2.42e-06,86937.0,86928.0,0.3608]
[1765992543573,2.42e-06,86937.0,86918.0,0.3608]
[1765992543574,0.0115065,86935.0,86924.0,0.00017251]
[1765992543774,0.3608,86936.0,86924.0,0.00017251]
[1765992543975,2.42e-06,86937.0,86929.0,0.3608]
[1765992544278,2.42e-06,86937.0,86932.0,0.001]
[1765992544474,2.42e-06,86937.0,86936.0,0.3608]
[1765992544683,2.42e-06,86937.0,86929.0,0.3608]
[1765992545591,0.00017251,86941.0,86932.0,0.0115068]
[1765992545786,0.00017251,86941.0,86936.0,0.3608]
[1765992548088,0.00117251,86941.0,86936.0,0.3608]
[1765992551287,0.0115038,86955.0,86936.0,0.3608]
[1765992551478,0.0115038,86955.0,86943.0,0.3608]
[1765992551873,0.0115043,86952.0,86943.0,0.3608]
[1765992552189,0.3608,86947.0,86924.0,0.36097251]
[1765992552389,0.3608,86936.0,86924.0,0.36097251]
[1765992552585,0.3608,86936.0,86927.0,0.0115074]
[1765992553093,0.3608,86936.0,86924.0,0.36097251]
[1765992553285,0.0115069,86933.0,86924.0,0.36097251]
[1765992554675,0.0115068,86933.0,86924.0,0.36097251]
[1765992555373,0.3608,86936.0,86924.0,2.51e-06]
[1765992555374,0.3608,86929.0,86924.0,2.51e-06]
[1765992555578,0.0115074,86928.0,86924.0,2.51e-06]
[1765992555982,0.3608,86929.0,86924.0,2.51e-06]
[1765992556382,0.3723074,86929.0,86924.0,2.51e-06]
[1765992556582,0.3608,86929.0,86924.0,2.51e-06]
[1765992556787,0.001,86928.0,86924.0,2.51e-06]
[1765992557377,0.3618,86929.0,86924.0,2.51e-06]
[1765992558082,0.011507,86932.0,86925.0,0.3608]
[1765992558285,0.3608,86928.0,86924.0,1e-08]
[1765992559984,0.3618,86928.0,86924.0,1e-08]
[1765992561091,0.88736,86949.0,86925.0,0.3608]
[1765992561387,0.0115047,86949.0,86941.0,0.3608]
[1765992561782,0.0115043,86952.0,86941.0,0.3608]
[1765992561983,0.3608,86958.0,86941.0,0.3608]
[1765992562193,0.0115039,86955.0,86941.0,0.3608]
[1765992562387,0.0115041,86953.0,86941.0,0.3608]
[1765992562689,0.0115044,86951.0,86941.0,0.3608]
[1765992564794,0.3608,86958.0,86941.0,0.3608]
[1765992565181,0.0115042,86953.0,86941.0,0.3608]
[1765992566478,0.0115042,86953.0,86941.0,0.3618]
[1765992566890,0.0115046,86950.0,86941.0,0.3618]
[1765992567294,0.00017251,86956.0,86941.0,0.3618]
[1765992567478,0.0115046,86950.0,86941.0,0.3618]
[1765992567684,0.0115048,86948.0,86941.0,0.3618]
[1765992567883,0.0115048,86948.0,86936.0,0.3608]
[1765992568188,0.3608,86950.0,86937.0,0.0115062]
[1765992568388,0.3723045,86950.0,86937.0,0.0115062]
[1765992568988,0.3723045,86950.0,86941.0,0.001]
[1765992569192,0.0115048,86948.0,86941.0,0.001]
[1765992569390,0.3608,86950.0,86941.0,0.001]
[1765992569587,0.3608,86950.0,86937.0,0.001]
[1765992570279,0.3608,86950.0,86941.0,0.001]
[1765992570483,0.0115046,86949.0,86941.0,0.001]
[1765992570885,0.3608,86950.0,86941.0,0.001]
[1765992571387,0.3723045,86950.0,86941.0,0.001]
[1765992571587,0.0115049,86947.0,86941.0,0.001]
[1765992571891,0.3608,86950.0,86937.0,0.001]
[1765992572097,0.3723046,86950.0,86937.0,0.0125062]
[1765992572298,0.3608,86950.0,86937.0,0.0125062]
[1765992572596,0.3608,86950.0,86937.0,0.0115062]
[1765992572797,0.3608,86950.0,86939.0,0.0115059]
[1765992572999,0.3608,86950.0,86937.0,0.001]
[1765992573293,0.00017251,86956.0,86949.0,0.3608]
[1765992573489,0.00017251,86956.0,86949.0,0.3723046]
[1765992573691,1e-08,86956.0,86949.0,0.3608]
[1765992574298,1e-08,86956.0,86954.0,0.0115038]
[1765992574594,1e-08,86956.0,86949.0,0.3608]
[1765992574788,1e-08,86956.0,86951.0,0.0115043]
[1765992574988,1e-08,86956.0,86949.0,0.3608]
[1765992575405,1e-08,86956.0,86950.0,0.0115045]
[1765992575699,1e-08,86956.0,86953.0,0.0115041]
[1765992576290,1e-08,86956.0,86949.0,0.3618]
[1765992576501,1e-08,86956.0,86949.0,0.3733046]
[1765992576794,1e-08,86956.0,86949.0,0.3608]
[1765992577089,1e-08,86956.0,86953.0,0.001]
[1765992578390,1e-08,86956.0,86949.0,0.3618]
[1765992579000,1e-08,86956.0,86949.0,0.3608]
[1765992579495,1e-08,86956.0,86949.0,0.3723046]
[1765992579899,1e-08,86956.0,86950.0,0.0115045]
[1765992580101,1e-08,86956.0,86952.0,0.0115042]
[1765992580798,0.01380025,86978.0,86956.0,0.0115036]
[1765992580799,0.00229945,86978.0,86956.0,0.0115036]
[1765992581002,0.3608,86993.0,86977.0,0.3608]
[1765992581191,0.3608,86993.0,86980.0,0.3608]
[1765992581389,0.3608,86981.0,86970.0,0.3608]
[1765992581594,0.0115011,86976.0,86970.0,0.3608]
[1765992582303,0.0115007,86979.0,86970.0,0.3608]
[1765992582602,0.0115007,86979.0,86970.0,0.3618]
[1765992583109,0.3723004,86981.0,86970.0,0.3608]
[1765992583497,0.3608,86981.0,86970.0,0.3608]
[1765992583702,2.51e-06,86982.0,86976.0,0.0115009]
[1765992583903,2.51e-06,86982.0,86973.0,0.0115014]
[1765992584206,0.19413251,86986.0,86978.0,0.3608]
[1765992585205,0.0115003,86982.0,86970.0,0.3608]
[1765992585506,0.20563231,86986.0,86971.0,0.0115017]
[1765992585805,0.0115,86984.0,86970.0,0.3608]
[1765992585998,0.0115,86984.0,86970.0,0.3723018]
[1765992586700,0.19513251,86986.0,86972.0,0.0115015]
[1765992587003,0.20663231,86986.0,86970.0,0.3608]
[1765992587202,0.19513251,86986.0,86970.0,0.3608]
[1765992587398,0.19413251,86986.0,86970.0,0.3608]
[1765992587989,0.19413251,86986.0,86970.0,0.3618]
[1765992588190,0.0115002,86983.0,86970.0,0.3618]
[1765992588908,0.19413251,86986.0,86970.0,0.3618]
[1765992589201,0.3608,86971.0,86957.0,1e-08]
[1765992589401,0.3608,86958.0,86957.0,1e-08]
[1765992590703,0.0115044,86951.0,86949.0,2e-08]
[1765992590908,0.3608,86950.0,86949.0,2e-08]
[1765992591600,0.0115059,86940.0,86938.0,2e-08]
[1765992591804,0.3608,86939.0,86924.0,0.07268]
[1765992592007,0.3608,86939.0,86910.0,0.33103262]
[1765992592008,0.3608,86925.0,86913.0,0.01165637]
[1765992592804,0.3608,86925.0,86916.0,0.011509]
[1765992592993,0.19413,86925.0,86914.0,0.0115092]
[1765992593198,0.00017251,86929.0,86916.0,0.3723089]
[1765992593404,0.18119251,86930.0,86916.0,0.3723089]
[1765992593800,0.18119251,86930.0,86916.0,0.3608]
[1765992593998,0.18119251,86930.0,86924.0,0.001]
[1765992594396,0.0115077,86927.0,86916.0,0.3608]
[1765992594610,0.0115077,86927.0,86916.0,0.3628]
[1765992595207,0.0115077,86927.0,86916.0,0.3608]
[1765992596715,0.18119251,86930.0,86916.0,0.3618]
[1765992596915,0.18119251,86930.0,86913.0,0.00014697]
[1765992596916,0.3608,86917.0,86913.0,0.00014697]
[1765992597315,0.3608,86917.0,86915.0,1e-07]
[1765992597611,0.3608,86917.0,86913.0,0.00014697]
[1765992599011,0.3608,86917.0,86913.0,7e-08]
[1765992600219,0.00013309,86916.0,86913.0,7e-08]
[1765992601313,0.00013309,86916.0,86900.0,4e-05]
[1765992601314,0.00113309,86916.0,86900.0,4e-05]
[1765992601612,0.00113309,86916.0,86903.0,0.3608]
[1765992601813,0.3608,86926.0,86911.0,0.3608]
[1765992602015,0.3608,86915.0,86903.0,0.3608]
[1765992602315,0.00017251,86918.0,86906.0,0.3608]
[1765992602518,0.00017251,86918.0,86913.0,0.19413]
[1765992602813,0.00017251,86918.0,86905.0,0.3608]
[1765992603208,2.51e-06,86918.0,86913.0,0.3608]
[1765992603412,0.3608,86934.0,86913.0,0.3608]
[1765992603613,0.0115067,86933.0,86925.0,0.3608]
[1765992603816,0.3608,86927.0,86913.0,0.3608]
[1765992604118,0.0115077,86926.0,86913.0,0.3608]
[1765992604321,0.0115096,86912.0,86900.0,4e-05]
[1765992604505,0.3608,86908.0,86900.0,4e-05]
[1765992604712,0.02762,86908.0,86900.0,4e-05]
[1765992604906,0.0115089,86917.0,86904.0,0.3608]
[1765992605219,0.0115092,86915.0,86904.0,0.3608]
[1765992605413,0.0115095,86912.0,86904.0,0.02746]
[1765992605634,0.3608,86908.0,86900.0,2.51e-06]
[1765992605824,0.3608,86901.0,86898.0,4.07e-06]
[1765992606421,0.0115091,86916.0,86900.0,0.3608]
[1765992606616,0.0115099,86910.0,86900.0,0.3608]
[1765992606923,0.0115095,86913.0,86900.0,0.3608]
[1765992607122,0.36097261,86917.0,86906.0,0.3608]
[1765992607418,0.0115092,86915.0,86906.0,0.3608]
[1765992607619,0.36097261,86917.0,86906.0,0.3608]
[1765992607822,0.001,86910.0,86906.0,0.3608]
[1765992608122,0.001,86910.0,86899.0,0.00017261]
[1765992608416,0.0115092,86915.0,86899.0,0.01168381]
[1765992608725,0.36097261,86917.0,86901.0,0.0115109]
[1765992608726,0.37248161,86917.0,86901.0,0.0115109]
[1765992608914,0.36097261,86917.0,86901.0,0.0115109]
[1765992609116,0.011509,86916.0,86899.0,0.00017261]
[1765992609316,0.0115094,86914.0,86899.0,0.00017261]
[1765992609523,0.36097261,86917.0,86899.0,0.00017261]
[1765992610122,0.0115094,86913.0,86899.0,0.00017261]
[1765992610908,0.0115092,86915.0,86899.0,0.00117261]
[1765992611625,0.36097261,86917.0,86899.0,0.00117261]
[1765992612022,0.3608,86900.0,86880.0,0.33134849]
[1765992612222,0.3723112,86900.0,86878.0,0.3608]
[1765992612431,0.3608,86900.0,86885.0,0.011513]
[1765992612925,0.3723112,86900.0,86882.0,0.0115134]
[1765992613117,0.3608,86889.0,86880.0,0.003]
[1765992613520,0.3723137,86881.0,86874.0,0.005]
[1765992613821,0.3608,86881.0,86874.0,0.005]
[1765992614324,0.3608,86904.0,86878.0,0.3608]
[1765992614525,2.61e-06,86901.0,86878.0,0.3608]
[1765992614715,0.3723128,86888.0,86874.0,0.005]
[1765992614916,0.3608,86888.0,86874.0,0.0165145]
[1765992615117,0.3608,86888.0,86874.0,0.005]
[1765992615621,0.3608,86888.0,86874.0,0.0165145]
[1765992615922,0.3608,86888.0,86874.0,0.005]
[1765992616123,0.3723113,86899.0,86881.0,0.0115135]
[1765992616323,0.3608,86899.0,86881.0,0.0115135]
[1765992616517,0.3608,86899.0,86880.0,0.3608]
[1765992616518,0.0115125,86890.0,86880.0,0.3608]
[1765992616825,0.0115121,86893.0,86880.0,0.3608]
[1765992617525,0.3723113,86899.0,86880.0,0.3723137]
[1765992617722,0.0115116,86897.0,86880.0,0.3723137]
[1765992617922,0.0115119,86895.0,86880.0,0.3608]
[1765992618124,0.3608,86892.0,86880.0,0.3608]
[1765992618326,0.3608,86884.0,86874.0,0.005]
[1765992618525,0.3608,86875.0,86863.0,0.011516]
[1765992618726,0.3608,86868.0,86857.0,0.3723167]
[1765992618926,0.3608,86868.0,86859.0,0.0115165]
[1765992619129,0.3608,86868.0,86857.0,0.3608]
[1765992619130,0.3608,86875.0,86857.0,0.3608]
[1765992619426,0.3608,86875.0,86862.0,0.5478761]
[1765992619625,0.3608,86875.0,86862.0,0.53636]
[1765992619831,0.3608,86875.0,86864.0,0.0115158]
[1765992620033,0.3608,86875.0,86862.0,0.53636]
[1765992620332,0.3608,86875.0,86862.0,0.5478761]
[1765992621124,0.3608,86875.0,86862.0,0.53636]
[1765992621525,0.0115151,86870.0,86862.0,0.53636]
[1765992621834,0.0115148,86873.0,86862.0,0.53636]
[1765992622128,0.3608,86875.0,86857.0,0.3608]
[1765992622532,0.0115164,86861.0,86850.0,0.3608]
[1765992622834,0.3608,86859.0,86848.0,0.011518]
[1765992623230,0.3608,86859.0,86847.0,0.3608]
[1765992623633,0.0115167,86858.0,86847.0,0.20069]
[1765992624030,0.3608,86859.0,86838.0,0.3608]
[1765992624227,0.3608,86848.0,86838.0,0.3608]
[1765992624435,0.3608,86848.0,86847.0,0.001]
[1765992624626,0.3608,86848.0,86838.0,0.3608]
[1765992625622,0.0115185,86845.0,86838.0,0.3608]
[1765992625841,0.3608,86848.0,86813.0,1.43956]
[1765992625842,0.3608,86839.0,86827.0,0.0115207]
[1765992626022,0.3608,86848.0,86830.0,0.3608]
[1765992626332,0.3608,86848.0,86829.0,0.33134849]
[1765992626333,0.005,86854.0,86843.0,0.3608]
[1765992626839,0.005,86854.0,86851.0,0.3608]
[1765992627733,0.00017272,86861.0,86851.0,0.3608]
[1765992629634,2e-08,86861.0,86859.0,0.3723165]
[1765992630127,0.3608,86882.0,86871.0,0.0115149]
[1765992630433,0.3608,86882.0,86873.0,0.0115146]
[1765992630629,0.3608,86890.0,86878.0,0.3608]
[1765992631433,0.002,86882.0,86878.0,0.3608]
[1765992632032,0.002,86882.0,86878.0,0.36053]
[1765992632431,0.3608,86879.0,86869.0,0.3608]
[1765992632730,0.3608,86879.0,86850.0,0.0115176]
[1765992632731,0.3608,86870.0,86850.0,0.0115176]
[1765992632938,0.3608,86857.0,86850.0,0.0115176]
[1765992633144,0.19413,86857.0,86846.0,0.0115182]
[1765992633642,0.19413,86857.0,86849.0,0.0115179]
[1765992633841,0.19413,86857.0,86843.0,0.75229272]
[1765992633842,0.19413,86857.0,86845.0,0.0115183]
[1765992634038,0.19413,86857.0,86843.0,0.75229272]
[1765992634237,0.19413,86857.0,86846.0,0.001]
[1765992634541,0.00017272,86860.0,86851.0,0.3608]
[1765992634841,0.3608,86870.0,86854.0,0.0115172]
[1765992635540,0.3608,86870.0,86860.0,0.3608]
[1765992636239,0.3608,86870.0,86861.0,0.0115163]
[1765992636428,0.00017272,86874.0,86860.0,0.58694333]
[1765992636841,0.01168732,86874.0,86860.0,0.58694333]
[1765992637242,0.001,86870.0,86860.0,0.58694333]
[1765992637442,0.001,86870.0,86860.0,0.3608]
[1765992637640,0.00017272,86874.0,86860.0,0.3618]
[1765992638635,0.00017272,86874.0,86868.0,0.3608]
[1765992638835,0.00017272,86874.0,86840.0,0.011519]
[1765992638836,0.3608,86870.0,86851.0,0.0115175]
[1765992639040,0.3723152,86870.0,86847.0,0.3608]
[1765992639236,0.3608,86870.0,86858.0,0.0115166]
[1765992639631,0.3608,86870.0,86860.0,0.0125163]
[1765992639841,0.3608,86870.0,86860.0,0.001]
[1765992640243,0.3608,86870.0,86856.0,0.00017272]
[1765992641043,0.3608,86870.0,86860.0,0.22614333]
[1765992641248,0.3608,86870.0,86856.0,0.00017272]
[1765992641552,0.3608,86864.0,86856.0,0.00017272]
[1765992642448,0.3608,86864.0,86856.0,0.00117272]
[1765992644447,0.0115162,86862.0,86856.0,0.00117272]
[1765992644652,0.3608,86864.0,86856.0,0.00117272]
[1765992646158,0.3608,86864.0,86856.0,2e-08]
[1765992646447,0.3608,86857.0,86846.0,0.3608]
[1765992646955,0.3608,86857.0,86856.0,0.001]
[1765992648243,0.23765853,86870.0,86856.0,0.3618]
[1765992648647,0.22614333,86870.0,86856.0,0.3618]
[1765992648947,0.0115161,86863.0,86856.0,0.3618]
[1765992649153,0.0115161,86863.0,86856.0,0.3608]
[1765992649354,0.0115157,86866.0,86856.0,0.3608]
[1765992649551,0.3608,86871.0,86856.0,0.3608]
[1765992649739,0.3608,86871.0,86856.0,0.3618]
[1765992650145,0.0115157,86866.0,86856.0,0.3618]
[1765992650345,0.0115158,86865.0,86856.0,0.3608]
[1765992651153,0.0115161,86863.0,86856.0,0.3608]
[1765992651953,0.0115163,86861.0,86856.0,0.3608]
[1765992652152,0.011516,86864.0,86856.0,0.3608]
[1765992652352,0.3608,86871.0,86856.0,0.3608]
[1765992652556,0.0115164,86860.0,86856.0,0.3618]
[1765992652752,0.3608,86858.0,86846.0,0.3608]
[1765992653456,0.3608,86847.0,86820.0,0.22614333]
[1765992653661,0.0115185,86845.0,86831.0,0.3608]
[1765992653956,0.00017272,86848.0,86837.0,0.0115194]
[1765992654158,0.00017272,86848.0,86834.0,0.0115197]
[1765992654547,0.00017272,86848.0,86838.0,0.3608]
[1765992654754,2.72e-06,86848.0,86840.0,0.011519]
[1765992654957,2.72e-06,86848.0,86844.0,0.0115184]
[1765992655155,2.72e-06,86848.0,86838.0,0.58694333]
[1765992655356,2.72e-06,86848.0,86843.0,0.0115187]
[1765992655761,2.72e-06,86848.0,86847.0,0.3608]
[1765992658552,2.72e-06,86848.0,86838.0,0.58694333]
[1765992658553,2.72e-06,86848.0,86838.0,0.3608]
[1765992658764,0.01152082,86848.0,86838.0,0.3608]
[1765992658959,2.72e-06,86848.0,86837.0,4e-08]
[1765992659160,0.3608,86842.0,86827.0,0.3608]
[1765992659659,0.3608,86842.0,86816.0,0.03048194]